fUST/lending_fUST_20240323
["ID","MTS","AMOUNT","RATE_DAILY","PERIOD"]
[320093666,1711150248119,-500.0,0.00026849,2]
[320093668,1711150248128,-1072.15,0.00026849,2]
[320093670,1711150248137,-2899.07,0.00026849,2]
[320093672,1711150248146,-500.0,0.00026849,2]
[320093674,1711150248157,-500.0,0.00026849,2]
[320093676,1711150248167,-1090.97,0.00026849,2]
[320093678,1711150248176,-1483.73,0.00026849,2]
[320093680,1711150248186,-500.0,0.00026849,2]
[320093682,1711150248196,-1359.64,0.00026849,2]
[320093684,1711150248205,-369.76065113,0.00026849,2]
[320095065,1711151438383,-478.33907794,0.00024201,2]
[320095066,1711151438395,-788.31083086,0.00024211,2]
[320095067,1711151438409,-24111.68916914,0.00024211,2]
[320095068,1711151438420,-1429.91276411,0.00024557,2]
[320095069,1711151438429,-500.0,0.00024657,2]
[320095070,1711151438439,-246.76955318,0.00024657,2]
[320095071,1711151438453,-500.0,0.00024657,2]
[320095072,1711151438465,-500.0,0.00024657,2]
[320095073,1711151438475,-500.0,0.00024657,2]
[320095074,1711151438486,-500.0,0.00024657,2]
[320095075,1711151438499,-500.0,0.00024657,2]
[320095076,1711151438510,-500.0,0.00024657,2]
[320095077,1711151438521,-500.0,0.00024657,2]
[320095078,1711151438531,-500.0,0.00024657,2]
[320095079,1711151438542,-500.0,0.00024657,2]
[320095080,1711151438554,-500.0,0.00024657,2]
[320095081,1711151438566,-500.0,0.00024657,2]
[320095082,1711151438578,-244.70375022,0.00024657,2]
[320095083,1711151438589,-742.46,0.00024657,2]
[320095084,1711151438602,-500.0,0.00024657,2]
[320095085,1711151438614,-500.0,0.00024657,2]
[320095086,1711151438626,-500.0,0.00024657,2]
[320095087,1711151438638,-500.0,0.00024657,2]
[320095088,1711151438650,-483.96581288,0.00024657,2]
[320095089,1711151438662,-500.0,0.00024657,2]
[320095090,1711151438675,-500.0,0.00024657,2]
[320095091,1711151438686,-500.0,0.00024657,2]
[320095092,1711151438697,-500.0,0.00024657,2]
[320095093,1711151438708,-500.0,0.00024657,2]
[320095094,1711151438721,-500.0,0.00024657,2]
[320095095,1711151438732,-500.0,0.00024657,2]
[320095096,1711151438745,-546.52457957,0.00024657,2]
[320095097,1711151438760,-500.0,0.00024657,2]
[320095098,1711151438772,-500.0,0.00024657,2]
[320095099,1711151438784,-500.0,0.00024657,2]
[320095100,1711151438795,-500.0,0.00024657,2]
[320095101,1711151438806,-500.0,0.00024657,2]
[320095102,1711151438817,-500.0,0.00024657,2]
[320095103,1711151438828,-500.0,0.00024657,2]
[320095104,1711151438839,-549.94,0.00024657,2]
[320095105,1711151438849,-500.0,0.00024657,2]
[320095106,1711151438860,-500.0,0.00024657,2]
[320095107,1711151438870,-869.3,0.00024657,2]
[320095108,1711151438880,-500.0,0.00024657,2]
[320095109,1711151438891,-1838.76,0.00024657,2]
[320095110,1711151438902,-863.71,0.00024657,2]
[320095111,1711151438912,-500.0,0.00024657,2]
[320095112,1711151438923,-516.37168215,0.00024657,2]
[320095113,1711151438933,-500.0,0.00024657,2]
[320095114,1711151438944,-500.0,0.00024657,2]
[320095115,1711151438954,-500.0,0.00024657,2]
[320095116,1711151438967,-500.0,0.00024657,2]
[320095117,1711151438980,-500.0,0.00024657,2]
[320095118,1711151438993,-449.0147999,0.00024657,2]
[320095119,1711151439003,-500.0,0.00024657,2]
[320095120,1711151439014,-500.0,0.00024657,2]
[320095121,1711151439024,-500.0,0.00024657,2]
[320095122,1711151439034,-500.0,0.00024657,2]
[320095123,1711151439044,-500.0,0.00024657,2]
[320095124,1711151439055,-280.62819496,0.00024657,2]
[320095125,1711151439066,-601.68428916,0.00024657,2]
[320095126,1711151439076,-500.0,0.00024657,2]
[320095127,1711151439087,-500.0,0.00024657,2]
[320095128,1711151439097,-500.0,0.00024657,2]
[320095129,1711151439107,-500.0,0.00024657,2]
[320095130,1711151439118,-500.0,0.00024657,2]
[320095131,1711151439128,-978.1,0.00024657,2]
[320095132,1711151439139,-500.0,0.00024657,2]
[320095133,1711151439149,-500.0,0.00024657,2]
[320095134,1711151439160,-551.65,0.00024657,2]
[320095135,1711151439170,-500.0,0.00024657,2]
[320095136,1711151439181,-500.0,0.00024657,2]
[320095137,1711151439192,-500.0,0.00024657,2]
[320095138,1711151439202,-500.0,0.00024657,2]
[320095139,1711151439212,-500.0,0.00024657,2]
[320095140,1711151439226,-500.0,0.00024657,2]
[320095141,1711151439236,-212.24,0.00024657,2]
[320095142,1711151439247,-500.0,0.00024657,2]
[320095143,1711151439257,-500.0,0.00024657,2]
[320095144,1711151439267,-500.0,0.00024657,2]
[320095145,1711151439278,-500.0,0.00024657,2]
[320095146,1711151439288,-500.0,0.00024657,2]
[320095147,1711151439298,-500.0,0.00024657,2]
[320095148,1711151439309,-1194.84,0.00024657,2]
[320095149,1711151439319,-500.0,0.00024657,2]
[320095150,1711151439329,-500.0,0.00024657,2]
[320095151,1711151439340,-618.80697838,0.00024657,2]
[320095152,1711151439350,-500.0,0.00024657,2]
[320095153,1711151439360,-500.0,0.00024657,2]
[320095154,1711151439371,-1155.63,0.00024657,2]
[320095155,1711151439380,-500.0,0.00024657,2]
[320095156,1711151439391,-500.0,0.00024657,2]
[320095157,1711151439401,-1844.16,0.00024657,2]
[320095158,1711151439411,-162.17961263,0.00024657,2]
[320095159,1711151439423,-500.0,0.00024657,2]
[320095160,1711151439433,-500.0,0.00024657,2]
[320095161,1711151439444,-938.13,0.00024657,2]
[320095162,1711151439455,-500.0,0.00024657,2]
[320095163,1711151439467,-2536.69,0.00024657,2]
[320095164,1711151439478,-3010.24,0.00024657,2]
[320095165,1711151439488,-500.0,0.00024657,2]
[320095166,1711151439499,-1298.27,0.00024657,2]
[320095167,1711151439509,-520.81521444,0.00024657,2]
[320095168,1711151439519,-500.0,0.00024657,2]
[320095169,1711151439530,-500.0,0.00024657,2]
[320095170,1711151439540,-17209.98,0.00024657,2]
[320095171,1711151439551,-506.33,0.00024657,2]
[320095172,1711151439563,-500.0,0.00024657,2]
[320095173,1711151439732,-500.0,0.00024657,2]
[320095174,1711151439746,-500.0,0.00024657,2]
[320095175,1711151439759,-954.6,0.00024657,2]
[320095176,1711151439769,-13264.5,0.00024657,2]
[320095177,1711151439778,-500.0,0.00024657,2]
[320095178,1711151439788,-500.0,0.00024657,2]
[320095179,1711151439798,-500.0,0.00024657,2]
[320095180,1711151439808,-500.0,0.00024657,2]
[320095181,1711151439817,-500.0,0.00024657,2]
[320095182,1711151439828,-500.0,0.00024657,2]
[320095183,1711151439838,-500.0,0.00024657,2]
[320095184,1711151439848,-500.0,0.00024657,2]
[320095185,1711151439858,-500.0,0.00024657,2]
[320095186,1711151439868,-500.0,0.00024657,2]
[320095187,1711151439877,-1025.77,0.00024657,2]
[320095188,1711151439887,-500.0,0.00024657,2]
[320095189,1711151439896,-1705.0,0.00024657,2]
[320095190,1711151439906,-500.0,0.00024657,2]
[320095191,1711151439915,-500.0,0.00024657,2]
[320095192,1711151439926,-622.0458634,0.00024657,2]
[320095193,1711151439935,-500.0,0.00024657,2]
[320095194,1711151439945,-500.0,0.00024657,2]
[320095195,1711151439954,-500.0,0.00024657,2]
[320095196,1711151439967,-500.0,0.00024657,2]
[320095197,1711151439976,-1396.89,0.00024657,2]
[320095198,1711151439986,-500.0,0.00024657,2]
[320095200,1711151439995,-246.28499172,0.00024657,2]
[320095201,1711151440005,-500.0,0.00024657,2]
[320095202,1711151440015,-688.46,0.00024657,2]
[320095203,1711151440025,-500.0,0.00024657,2]
[320095204,1711151440034,-318.33077286,0.00024657,2]
[320095205,1711151440043,-14192.18,0.00024657,2]
[320095206,1711151440053,-500.0,0.00024657,2]
[320095207,1711151440062,-500.0,0.00024657,2]
[320095208,1711151440072,-500.0,0.00024657,2]
[320095209,1711151440081,-500.0,0.00024657,2]
[320095210,1711151440091,-500.0,0.00024657,2]
[320095211,1711151440101,-500.0,0.00024657,2]
[320095212,1711151440110,-500.0,0.00024657,2]
[320095213,1711151440120,-2631.52,0.00024657,2]
[320095214,1711151440129,-19030.99,0.00024657,2]
[320095215,1711151440139,-500.0,0.00024657,2]
[320095216,1711151440148,-500.0,0.00024657,2]
[320095218,1711151440158,-500.0,0.00024657,2]
[320095220,1711151440167,-1389.23,0.00024657,2]
[320095221,1711151440177,-500.0,0.00024657,2]
[320095222,1711151440187,-500.0,0.00024657,2]
[320095223,1711151440196,-500.0,0.00024657,2]
[320095224,1711151440205,-500.0,0.00024657,2]
[320095225,1711151440215,-500.0,0.00024657,2]
[320095226,1711151440226,-500.0,0.00024657,2]
[320095227,1711151440235,-6290.12,0.00024657,2]
[320095228,1711151440244,-500.0,0.00024657,2]
[320095229,1711151440255,-500.0,0.00024657,2]
[320095230,1711151440265,-500.0,0.00024657,2]
[320095231,1711151440275,-500.0,0.00024657,2]
[320095232,1711151440284,-500.0,0.00024657,2]
[320095233,1711151440293,-15489.45,0.00024657,2]
[320095234,1711151440302,-500.0,0.00024657,2]
[320095235,1711151440310,-500.0,0.00024657,2]
[320095236,1711151440319,-603.05,0.00024657,2]
[320095237,1711151440329,-1062.96,0.00024657,2]
[320095238,1711151440337,-309.57720047,0.00024657,2]
[320095239,1711151440347,-1114.51,0.00024657,2]
[320095240,1711151440356,-3377.72,0.00024657,2]
[320095241,1711151440366,-500.0,0.00024657,2]
[320095242,1711151440376,-500.0,0.00024657,2]
[320095243,1711151440385,-500.0,0.00024657,2]
[320095244,1711151440394,-500.0,0.00024657,2]
[320095245,1711151440404,-500.0,0.00024657,2]
[320095246,1711151440413,-1128.53,0.00024657,2]
[320095248,1711151440423,-564.28,0.00024657,2]
[320095250,1711151440433,-500.0,0.00024657,2]
[320095251,1711151440442,-500.0,0.00024657,2]
[320095253,1711151440451,-500.0,0.00024657,2]
[320095254,1711151440461,-1189.68,0.00024657,2]
[320095255,1711151440473,-210.85507968,0.00024657,2]
[320095256,1711151440483,-1124.94,0.00024657,2]
[320095257,1711151440493,-500.0,0.00025205,2]
[320095258,1711151440503,-500.0,0.00025205,2]
[320095259,1711151440512,-500.0,0.00025205,2]
[320095260,1711151440522,-500.0,0.00025205,2]
[320095261,1711151440532,-500.0,0.00025205,2]
[320095262,1711151440541,-742.46,0.00025205,2]
[320095263,1711151440551,-500.0,0.00025205,2]
[320095264,1711151440561,-500.0,0.00025205,2]
[320095265,1711151440571,-500.0,0.00025205,2]
[320095266,1711151440581,-500.0,0.00025205,2]
[320095267,1711151440591,-500.0,0.00025205,2]
[320095268,1711151440601,-500.0,0.00025205,2]
[320095269,1711151440610,-500.0,0.00025205,2]
[320095270,1711151440620,-500.0,0.00025205,2]
[320095271,1711151440629,-500.0,0.00025205,2]
[320095272,1711151440640,-500.0,0.00025205,2]
[320095273,1711151440650,-549.94,0.00025205,2]
[320095274,1711151440659,-869.3,0.00025205,2]
[320095275,1711151440670,-500.0,0.00025205,2]
[320095276,1711151440679,-1838.76,0.00025205,2]
[320095277,1711151440688,-863.71,0.00025205,2]
[320095278,1711151440698,-500.0,0.00025205,2]
[320095279,1711151440707,-500.0,0.00025205,2]
[320095280,1711151440717,-500.0,0.00025205,2]
[320095281,1711151440730,-500.0,0.00025205,2]
[320095282,1711151440740,-500.0,0.00025205,2]
[320095283,1711151440750,-500.0,0.00025205,2]
[320095284,1711151440763,-500.0,0.00025205,2]
[320095285,1711151440772,-500.0,0.00025205,2]
[320095286,1711151440782,-500.0,0.00025205,2]
[320095288,1711151440790,-500.0,0.00025205,2]
[320095289,1711151440801,-362.36989471,0.00025205,2]
[320095290,1711151440810,-500.0,0.00025205,2]
[320095291,1711151440820,-500.0,0.00025205,2]
[320095292,1711151440830,-978.1,0.00025205,2]
[320095293,1711151440840,-551.65,0.00025205,2]
[320095294,1711151440849,-500.0,0.00025205,2]
[320095295,1711151440859,-500.0,0.00025205,2]
[320095296,1711151440869,-200.83663939,0.00025205,2]
[320095297,1711151440879,-500.0,0.00025205,2]
[320095298,1711151440888,-500.0,0.00025205,2]
[320095299,1711151440898,-500.0,0.00025205,2]
[320095300,1711151440907,-500.0,0.00025205,2]
[320095301,1711151440917,-500.0,0.00025205,2]
[320095302,1711151440927,-500.0,0.00025205,2]
[320095303,1711151440936,-1194.84,0.00025205,2]
[320095304,1711151440946,-500.0,0.00025205,2]
[320095305,1711151440956,-500.0,0.00025205,2]
[320095306,1711151440965,-1155.63,0.00025205,2]
[320095307,1711151440977,-1844.16,0.00025205,2]
[320095308,1711151440986,-195.43926147,0.00025205,2]
[320095309,1711151440996,-938.13,0.00025205,2]
[320095310,1711151441005,-500.0,0.00025205,2]
[320095311,1711151441014,-2536.69,0.00025205,2]
[320095312,1711151441023,-3010.24,0.00025205,2]
[320095313,1711151441032,-1298.27,0.00025205,2]
[320095314,1711151441041,-500.0,0.00025205,2]
[320095315,1711151441051,-17209.98,0.00025205,2]
[320095316,1711151441060,-506.33,0.00025205,2]
[320095317,1711151441069,-500.0,0.00025205,2]
[320095318,1711151441079,-500.0,0.00025205,2]
[320095319,1711151441088,-954.6,0.00025205,2]
[320095320,1711151441097,-13264.5,0.00025205,2]
[320095321,1711151441106,-500.0,0.00025205,2]
[320095322,1711151441116,-500.0,0.00025205,2]
[320095323,1711151441126,-500.0,0.00025205,2]
[320095324,1711151441135,-500.0,0.00025205,2]
[320095325,1711151441145,-500.0,0.00025205,2]
[320095326,1711151441154,-500.0,0.00025205,2]
[320095327,1711151441163,-1025.77,0.00025205,2]
[320095328,1711151441172,-500.0,0.00025205,2]
[320095329,1711151441181,-1705.0,0.00025205,2]
[320095330,1711151441190,-500.0,0.00025205,2]
[320095331,1711151441200,-500.0,0.00025205,2]
[320095332,1711151441210,-500.0,0.00025205,2]
[320095333,1711151441220,-410.9932973,0.00025205,2]
[320095334,1711151441230,-500.0,0.00025205,2]
[320095335,1711151441240,-1396.89,0.00025205,2]
[320095336,1711151441249,-500.0,0.00025205,2]
[320095337,1711151441258,-500.0,0.00025205,2]
[320095338,1711151441267,-688.46,0.00025205,2]
[320095339,1711151441277,-500.0,0.00025205,2]
[320095340,1711151441287,-14192.18,0.00025205,2]
[320095341,1711151441296,-500.0,0.00025205,2]
[320095342,1711151441305,-241.28784113,0.00025205,2]
[320095343,1711151441315,-500.0,0.00025205,2]
[320095344,1711151441325,-2631.52,0.00025205,2]
[320095345,1711151441334,-19030.99,0.00025205,2]
[320095346,1711151441343,-500.0,0.00025205,2]
[320095347,1711151441353,-500.0,0.00025205,2]
[320095348,1711151441362,-1389.23,0.00025205,2]
[320095349,1711151441371,-500.0,0.00025205,2]
[320095350,1711151441381,-500.0,0.00025205,2]
[320095351,1711151441390,-500.0,0.00025205,2]
[320095352,1711151441399,-6290.12,0.00025205,2]
[320095353,1711151441408,-500.0,0.00025205,2]
[320095354,1711151441417,-500.0,0.00025205,2]
[320095355,1711151441426,-15489.45,0.00025205,2]
[320095356,1711151441435,-500.0,0.00025205,2]
[320095357,1711151441444,-603.05,0.00025205,2]
[320095358,1711151441453,-1062.96,0.00025205,2]
[320095359,1711151441463,-1114.51,0.00025205,2]
[320095360,1711151441475,-3377.72,0.00025205,2]
[320095361,1711151441484,-500.0,0.00025205,2]
[320095362,1711151441493,-500.0,0.00025205,2]
[320095363,1711151441502,-500.0,0.00025205,2]
[320095364,1711151441511,-1128.53,0.00025205,2]
[320095365,1711151441520,-500.0,0.00025205,2]
[320095366,1711151441530,-564.28,0.00025205,2]
[320095367,1711151441539,-500.0,0.00025205,2]
[320095368,1711151441548,-500.0,0.00025205,2]
[320095369,1711151441557,-1189.68,0.00025205,2]
[320095370,1711151441567,-306.2103796,0.00025479,2]
[320095371,1711151441577,-151.80276999,0.00025503,2]
[320095372,1711151441586,-500.0,0.00025753,2]
[320095373,1711151441596,-500.0,0.00025753,2]
[320095374,1711151441606,-500.0,0.00025753,2]
[320095375,1711151441615,-500.0,0.00025753,2]
[320095376,1711151441624,-742.46,0.00025753,2]
[320095377,1711151441633,-500.0,0.00025753,2]
[320095378,1711151441642,-500.0,0.00025753,2]
[320095379,1711151441652,-500.0,0.00025753,2]
[320095380,1711151441661,-500.0,0.00025753,2]
[320095381,1711151441670,-500.0,0.00025753,2]
[320095382,1711151441680,-549.94,0.00025753,2]
[320095383,1711151441689,-869.3,0.00025753,2]
[320095384,1711151441698,-500.0,0.00025753,2]
[320095385,1711151441707,-1838.76,0.00025753,2]
[320095386,1711151441717,-863.71,0.00025753,2]
[320095387,1711151441727,-500.0,0.00025753,2]
[320095388,1711151441737,-500.0,0.00025753,2]
[320095389,1711151441747,-500.0,0.00025753,2]
[320095390,1711151441759,-500.0,0.00025753,2]
[320095391,1711151441768,-500.0,0.00025753,2]
[320095392,1711151441777,-500.0,0.00025753,2]
[320095393,1711151441786,-978.1,0.00025753,2]
[320095394,1711151441795,-551.65,0.00025753,2]
[320095395,1711151441804,-431.90709798,0.00025753,2]
[320095396,1711151441815,-500.0,0.00025753,2]
[320095397,1711151441825,-500.0,0.00025753,2]
[320095398,1711151441837,-500.0,0.00025753,2]
[320095399,1711151441846,-1194.84,0.00025753,2]
[320095400,1711151441855,-500.0,0.00025753,2]
[320095401,1711151441865,-500.0,0.00025753,2]
[320095402,1711151441875,-1155.63,0.00025753,2]
[320095403,1711151441884,-1844.16,0.00025753,2]
[320095404,1711151441893,-938.13,0.00025753,2]
[320095405,1711151441902,-500.0,0.00025753,2]
[320095406,1711151441911,-2536.69,0.00025753,2]
[320095407,1711151441920,-3010.24,0.00025753,2]
[320095408,1711151441929,-1298.27,0.00025753,2]
[320095409,1711151441939,-500.0,0.00025753,2]
[320095410,1711151441949,-2552.71234077,0.00025753,2]
[320095419,1711151443419,-500.0,0.00024657,2]
[320095420,1711151443429,-1124.94,0.00025205,2]
[320095421,1711151443439,-14657.26765923,0.00025753,2]
[320095422,1711151443448,-506.33,0.00025753,2]
[320095423,1711151443458,-500.0,0.00025753,2]
[320095424,1711151443467,-954.6,0.00025753,2]
[320095425,1711151443478,-13264.5,0.00025753,2]
[320095426,1711151443487,-1025.77,0.00025753,2]
[320095427,1711151443496,-500.0,0.00025753,2]
[320095428,1711151443505,-500.0,0.00025753,2]
[320095429,1711151443514,-1705.0,0.00025753,2]
[320095430,1711151443523,-500.0,0.00025753,2]
[320095431,1711151443532,-500.0,0.00025753,2]
[320095432,1711151443541,-1396.89,0.00025753,2]
[320095433,1711151443550,-500.0,0.00025753,2]
[320095434,1711151443559,-688.46,0.00025753,2]
[320095435,1711151443569,-500.0,0.00025753,2]
[320095436,1711151443578,-14192.18,0.00025753,2]
[320095437,1711151443587,-500.0,0.00025753,2]
[320095438,1711151443597,-500.0,0.00025753,2]
[320095439,1711151443606,-2631.52,0.00025753,2]
[320095440,1711151443616,-621.56647835,0.00025753,2]
[320095441,1711151443625,-16246.57699571,0.00025753,2]
[320095449,1711151446605,-649.66,0.00024657,2]
[320095450,1711151446614,-500.0,0.00024657,2]
[320095451,1711151446624,-755.74,0.00024657,2]
[320095452,1711151446633,-500.0,0.00024657,2]
[320095453,1711151446643,-649.66,0.00025205,2]
[320095454,1711151446652,-755.74,0.00025205,2]
[320095455,1711151446662,-2784.41300429,0.00025753,2]
[320095456,1711151446671,-500.0,0.00025753,2]
[320095457,1711151446681,-1389.23,0.00025753,2]
[320095458,1711151446690,-500.0,0.00025753,2]
[320095459,1711151446699,-500.0,0.00025753,2]
[320095460,1711151446708,-6290.12,0.00025753,2]
[320095461,1711151446718,-500.0,0.00025753,2]
[320095462,1711151446728,-15489.45,0.00025753,2]
[320095463,1711151446737,-180.2210901,0.00025753,2]
[320095464,1711151446747,-603.05,0.00025753,2]
[320095465,1711151446756,-1062.96,0.00025753,2]
[320095466,1711151446766,-1114.51,0.00025753,2]
[320095467,1711151446775,-3377.72,0.00025753,2]
[320095468,1711151446784,-500.0,0.00025753,2]
[320095469,1711151446795,-1128.53,0.00025753,2]
[320095470,1711151446804,-564.28,0.00025753,2]
[320095471,1711151446813,-500.0,0.00025753,2]
[320095472,1711151446823,-500.0,0.00025753,2]
[320095473,1711151446833,-500.0,0.00025753,2]
[320095474,1711151446955,-1189.68,0.00025753,2]
[320095475,1711151446964,-1124.94,0.00025753,2]
[320095476,1711151446975,-649.66,0.00025753,2]
[320095477,1711151446985,-755.74,0.00025753,2]
[320095478,1711151446994,-2657.68451481,0.000259,2]
[320095479,1711151447003,-37788.34775687,0.00026,2]
[320095508,1711152632638,-318.89271863,0.00023653,2]
[320095509,1711152632648,-4528.89201881,0.00023656,2]
[320095638,1711152638632,-8835.77935446,0.00023656,2]
[320095639,1711152638645,-3888.73203827,0.00023656,2]
[320095640,1711152638659,-7646.59658846,0.00023656,2]
[320095641,1711152638668,-235.68783124,0.00024557,2]
[320095642,1711152638678,-154.9690062,0.00024655,2]
[320095643,1711152638688,-500.0,0.00024657,2]
[320095644,1711152638697,-500.0,0.00024657,2]
[320095645,1711152638707,-500.0,0.00024657,2]
[320095646,1711152638716,-500.0,0.00024657,2]
[320095647,1711152638726,-500.0,0.00024657,2]
[320095648,1711152638735,-500.0,0.00024657,2]
[320095649,1711152638745,-500.0,0.00024657,2]
[320095650,1711152638755,-500.0,0.00024657,2]
[320095651,1711152638766,-500.0,0.00024657,2]
[320095652,1711152638776,-500.0,0.00024657,2]
[320095653,1711152638786,-500.0,0.00024657,2]
[320095654,1711152638795,-500.0,0.00024657,2]
[320095655,1711152638807,-500.0,0.00024657,2]
[320095656,1711152638818,-601.68428916,0.00024657,2]
[320095657,1711152638827,-500.0,0.00024657,2]
[320095658,1711152638837,-632.49565172,0.00024657,2]
[320095659,1711152638847,-500.0,0.00024657,2]
[320095660,1711152638856,-500.0,0.00024657,2]
[320095661,1711152638866,-500.0,0.00024657,2]
[320095662,1711152638875,-500.0,0.00024657,2]
[320095663,1711152638885,-500.0,0.00024657,2]
[320095664,1711152638894,-584.75,0.00024657,2]
[320095665,1711152638904,-500.0,0.00024657,2]
[320095666,1711152638913,-978.1,0.00024657,2]
[320095667,1711152638923,-500.0,0.00024657,2]
[320095668,1711152638932,-500.0,0.00024657,2]
[320095669,1711152638942,-500.0,0.00024657,2]
[320095670,1711152638951,-1081.51,0.00024657,2]
[320095671,1711152638960,-500.0,0.00024657,2]
[320095672,1711152638970,-500.0,0.00024657,2]
[320095673,1711152638979,-500.0,0.00024657,2]
[320095674,1711152638988,-661.26,0.00024657,2]
[320095675,1711152638998,-500.0,0.00024657,2]
[320095676,1711152639007,-500.0,0.00024657,2]
[320095677,1711152639016,-500.0,0.00024657,2]
[320095678,1711152639026,-500.0,0.00024657,2]
[320095679,1711152639035,-618.80697838,0.00024657,2]
[320095680,1711152639045,-500.0,0.00024657,2]
[320095681,1711152639055,-500.0,0.00024657,2]
[320095682,1711152639064,-500.0,0.00024657,2]
[320095683,1711152639074,-500.0,0.00024657,2]
[320095684,1711152639083,-500.0,0.00024657,2]
[320095685,1711152639092,-162.17961263,0.00024657,2]
[320095686,1711152639101,-500.0,0.00024657,2]
[320095687,1711152639111,-500.0,0.00024657,2]
[320095688,1711152639122,-500.0,0.00024657,2]
[320095689,1711152639132,-1068.07,0.00024657,2]
[320095690,1711152639141,-500.0,0.00024657,2]
[320095691,1711152639151,-210.85507968,0.00024657,2]
[320095692,1711152639161,-500.0,0.00024657,2]
[320095693,1711152639171,-549.94,0.00024657,2]
[320095694,1711152639180,-540.77,0.00024657,2]
[320095695,1711152639190,-500.0,0.00024657,2]
[320095696,1711152639202,-500.0,0.00024657,2]
[320095697,1711152639211,-869.3,0.00024657,2]
[320095698,1711152639222,-769.24,0.00024657,2]
[320095699,1711152639231,-500.0,0.00024657,2]
[320095700,1711152639241,-500.0,0.00024657,2]
[320095701,1711152639251,-500.0,0.00024657,2]
[320095702,1711152639260,-500.0,0.00024657,2]
[320095703,1711152639270,-500.0,0.00024657,2]
[320095704,1711152639279,-1838.76,0.00024657,2]
[320095705,1711152639289,-622.0458634,0.00024657,2]
[320095706,1711152639299,-500.0,0.00024657,2]
[320095707,1711152639309,-500.0,0.00024657,2]
[320095708,1711152639318,-318.33077286,0.00024657,2]
[320095709,1711152639327,-500.0,0.00024657,2]
[320095710,1711152639337,-500.0,0.00024657,2]
[320095711,1711152639346,-449.0147999,0.00024657,2]
[320095712,1711152639357,-500.0,0.00024657,2]
[320095713,1711152639366,-500.0,0.00024657,2]
[320095714,1711152639376,-500.0,0.00024657,2]
[320095715,1711152639386,-500.0,0.00024657,2]
[320095716,1711152639395,-500.0,0.00024657,2]
[320095717,1711152639405,-500.0,0.00024657,2]
[320095718,1711152639416,-500.0,0.00024657,2]
[320095719,1711152639425,-500.0,0.00024657,2]
[320095720,1711152639435,-500.0,0.00024657,2]
[320095721,1711152639445,-500.0,0.00024657,2]
[320095722,1711152639454,-500.0,0.00024657,2]
[320095723,1711152639464,-500.0,0.00024657,2]
[320095724,1711152639474,-500.0,0.00024657,2]
[320095725,1711152639484,-500.0,0.00024657,2]
[320095726,1711152639494,-500.0,0.00024657,2]
[320095727,1711152639504,-500.0,0.00024657,2]
[320095728,1711152639514,-500.0,0.00024657,2]
[320095729,1711152639523,-500.0,0.00024657,2]
[320095730,1711152639534,-500.0,0.00024657,2]
[320095731,1711152639544,-500.0,0.00024657,2]
[320095732,1711152639554,-500.0,0.00024657,2]